[Event "8th Montevideo Open 2025"]
[Site "Montevideo"]
[Date "2025.02.05"]
[Round "5.10"]
[White "Dominguez, Facundo"]
[Black "Volpe, Agustin"]
[Result "1-0"]
[Annotator "TA"]
[ECO "B40"]
[WhiteElo "2159"]
[BlackElo "1873"]
[PlyCount "69"]
[EventDate "2025.02.01"]
[EventType "swiss"]
[EventCountry "URU"]
[SourceTitle "playchess.com"]
[Source "ChessBase"]
[SourceQuality "1"]
[TimeControl "5400+30"]

{[%evp 15,69,39,61,46,68,52,64,63,63,58,89,53,120,89,92,82,180,174,351,335,451,472,410,336,333,176,190,197,181,181,154,164,231,229,231,211,282,274,258,262,556,565,772,765,933,935,945,915,1052,1086,5381,5381,1852,2054,29991,2613]} 1. e4 {[%emt 0:00:04]} c5 {[%emt 0:00:19]} 2. Nf3 {[%emt 0:00:15]} e6 {[%emt 0:00:34]} 3. b3 {[%emt 0:01:54]} Nf6 {[%emt 0:05:56]} 4. e5 {[%emt 0:00:07]} Nd5 {[%emt 0:00:06]} 5. Bb2 {[%emt 0:00:10]} Be7 {[%emt 0:00:49]} 6. g3 {[%emt 0:00:07]} O-O {[%emt 0:00:43]} 7. Bg2 {[%emt 0:00:22]} Nc6 {[%emt 0:03:35]} 8. O-O {[%emt 0:00:46]} f6 {[%emt 0:01:45]} 9. c4 {[%emt 0:09:14] B40: Sicilian: 2...e6, Unusual lines.} Nc7 {[%emt 0:01:00]} 10. d4 {[%emt 0:02:22]} cxd4 {[%emt 0:02:24]} 11. exf6 {[%emt 0:03:28] White is slightly better.} (11. Bxd4 fxe5 12. Bc3 (12. Bxe5 $2 Nxe5 13. Nxe5 Bf6 $19) (12. Nxe5 $2 Nxd4 13. Qxd4 d6 $17) 12... e4 $17) 11... Bxf6 {[%emt 0:00:48]} 12. Nxd4 {[%emt 0:00:14] White is more active.} ({Much weaker is} 12. Bxd4 Nxd4 13. Nxd4 d5 $15) 12... Re8 $146 {[%emt 0:09:19] White now steadily converts the win.} (12... d5 13. Na3 e5 14. Nxc6 bxc6 15. cxd5 cxd5 16. Nb5 Nxb5 17. Bxd5+ Be6 18. Bxe6+ Kh8 19. Qxd8 Rfxd8 {0-1 Mekhane,A (2355)-Askarov,B (2280) Titled Tuesday intern op 13th Aug Late blitz 2024 (2)}) 13. Na3 {[%emt 0:06:57][%cal Bb1a3,Ba3c4,Bc4d6][%mdl 32]} a6 {[%emt 0:00:34]} (13... d5 $14) 14. c5 {[%emt 0:04:54]} Qe7 {[%emt 0:03:46]} 15. Rc1 {[%emt 0:00:42]} Rb8 {[%emt 0:08:11]} (15... Nb5 $16) 16. Nc4 $18 {[%emt 0:01:09]} Nd5 $2 {[%emt 0:07:15]} (16... Rf8 17. Qd2 Bxd4 18. Bxd4 Nxd4) 17. Nd6 {[%emt 0:04:28][%cal Og2d5]} Rf8 {[%emt 0:01:09]} 18. Bxd5 {[%emt 0:00:53]} exd5 {[%emt 0:00:11]} 19. N4f5 {[%emt 0:00:32] A dynamic duo of knights.} Qe6 {[%emt 0:03:39]} 20. Re1 {[%emt 0:01:33]} (20. Bxf6 $142 Qxf6 21. Qxd5+ Qe6 22. Ne3) 20... Bxb2 {[%emt 0:01:26]} 21. Rxe6 {[%emt 0:00:09]} dxe6 {[%emt 0:00:04]} 22. Rb1 $36 {[%emt 0:00:35][%mdl 2048] Keeping Black busy.} Bf6 {[%emt 0:02:12]} 23. Nxc8 {[%emt 0:03:20]} Rfxc8 {[%emt 0:03:32]} (23... Rbxc8 24. Nd6 Rc7) 24. Nd6 {[%emt 0:00:41]} Rc7 {[%emt 0:00:10]} 25. Kg2 {[%emt 0:58:04]} Rd8 {[%emt 0:09:48]} 26. Qg4 {[%emt 0:00:00]} Re7 {[%emt 0:02:19]} 27. Re1 {[%emt 0:00:00][%cal Bb1e1,Be1e5,Be5f5,Bf5f3][%mdl 32]} Be5 $2 {[%emt 0:04:57] [#]} (27... Nd4 {is a better defense.} 28. Rd1 e5) 28. Nxb7 $1 {[%emt 0:01:30][%mdl 512]} Rdd7 {[%emt 0:15:12] [#]} (28... Rc8 29. f4) 29. Na5 {[%emt 0:00:00][%mdl 512]} Nxa5 {[%emt 0:01:34]} (29... Bc3 30. Nxc6) 30. Rxe5 {[%emt 0:00:00]} Kf7 {[%emt 0:00:54]} 31. Qa4 {[%emt 0:00:00]} Nxb3 {[%emt 0:03:58]} 32. Qxb3 {[%emt 0:00:00]} d4 {[%emt 0:00:14]} 33. Rf5+ {[%emt 0:00:00]} Kg6 {[%emt 0:00:46]} 34. Rf3 {[%emt 0:00:00] aiming for c6.} e5 {[%emt 0:00:44]} 35. Qb6+ {[%emt 0:00:00] Weighted Error Value: White=0.16 (very precise) /Black=1.16  Mistake:       	White=1     	Black=5      Inaccurate:     	White=1     	Black=4      OK:         	White=10    	Black=7      Best:        	White=4     	---        Brilliant:      	White=1     	---} (35. Qd3+ $142 e4 36. Qxa6+ Kh5 37. Rf5+ Kg4 38. Rf4+ Kh5 39. Qe2+ (39. c6 Rd5 $18) 39... Kg6 40. Qg4+ (40. Rxe4 Rxe4 41. Qxe4+ Kf6 $18) 40... Kh6 41. Qh3+ (41. Rxe4 Rxe4 42. Qxd7 Re2 $18) 41... Kg6 42. Qf5+ Kh6 43. Rh4#) 1-0

[Event "8th Montevideo Open 2025"]
[Site "Montevideo"]
[Date "2025.02.05"]
[Round "5.11"]
[White "Cayetano, Juan"]
[Black "Brizzi, Milagros Tatiana"]
[Result "0-1"]
[Annotator "TA"]
[ECO "B13"]
[WhiteElo "1940"]
[BlackElo "2150"]
[PlyCount "112"]
[EventDate "2025.02.01"]
[EventType "swiss"]
[EventCountry "URU"]
[SourceTitle "playchess.com"]
[Source "ChessBase"]
[SourceQuality "1"]
[TimeControl "5400+30"]

{[%evp 13,111,-5,-1,-22,-2,-9,-3,-32,-14,-8,-14,-81,-54,-46,-52,-41,-47,-72,-68,-112,-119,-114,-107,-103,-97,-103,-110,-98,-67,-121,0,-122,-137,-117,-125,-124,-108,-152,0,0,0,0,0,-32,0,0,141,0,4,0,10,11,12,12,0,0,0,0,1,4,7,0,0,0,53,8,10,0,0,-41,-34,-34,0,-119,-104,-120,-110,-87,-87,-235,-243,-300,-310,-410,-408,-425,-422,-395,-424,-579,-554,-891,-887,-29996,-29997,-29997,-29998,-29998,-29999,-29999]} 1. e4 {[%emt 0:00:34]} c6 {[%emt 0:00:09]} 2. d4 {[%emt 0:00:06]} d5 {[%emt 0:00:16]} 3. exd5 {[%emt 0:01:43]} cxd5 {[%emt 0:00:11]} 4. Bd3 {[%emt 0:00:09]} Nc6 {[%emt 0:00:30]} 5. c3 {[%emt 0:00:56]} Nf6 {[%emt 0:00:34]} 6. Bg5 {[%emt 0:07:24]} Bg4 {[%emt 0:04:10]} 7. f3 {[%emt 0:09:01]} Bh5 {[%emt 0:00:57]} 8. Qb3 {[%emt 0:02:12]} Qd7 {[%emt 0:01:28]} 9. Ne2 {[%emt 0:03:10]} e6 {[%emt 0:00:44]} 10. Na3 {[%emt 0:04:57] The position is equal.} Be7 {[%emt 0:05:11]} 11. Nf4 {[%emt 0:06:32]} Bg6 {[%emt 0:00:26]} 12. Nb5 {[%emt 0:24:02]} (12. O-O $11) 12... Nh5 {[%emt 0:10:15]} 13. Nxg6 {[%emt 0:09:11]} hxg6 {[%emt 0:00:20]} 14. Bxe7 {[%emt 0:07:56]} Qxe7 {[%emt 0:00:18]} (14... Kxe7 {looks sharper.} 15. O-O a6 16. Na3 Nf4) 15. O-O-O {[%emt 0:04:37]} O-O {[%emt 0:01:23]} 16. g4 {[%emt 0:01:44]} Nf4 {[%emt 0:00:47]} 17. h4 {[%emt 0:02:18]} Rfc8 {[%emt 0:01:31]} 18. Kb1 {[%emt 0:00:39]} a6 {[%emt 0:00:49][%cal Of4d3] Threatens to win with ...Nxd3!} 19. Na3 {[%emt 0:00:19]} b5 {[%emt 0:00:28]} 20. Nc2 {[%emt 0:01:48]} Rab8 {[%emt 0:04:30]} 21. h5 {[%emt 0:02:30]} (21. Nb4 $1 $15) 21... b4 {[%emt 0:11:12]} (21... gxh5 $17 {...h4 would now be deadly.} 22. gxh5 Nxd3 23. Rxd3 Qf6) 22. Nxb4 {[%emt 0:05:58]} (22. hxg6 $2 Na5 (22... fxg6 23. Bxa6 Rc7 24. cxb4 $14) 23. Qa4 (23. gxf7+ Kxf7 24. Qa4 bxc3 $19) 23... bxc3 24. gxf7+ Kxf7 $19) (22. Bxa6 $11 Rd8 (22... Na5 23. Qa4 $14) 23. Nxb4 (23. hxg6 Na5 $15) 23... Nxb4 24. cxb4 Rxb4 25. Qe3) 22... Nxb4 $17 {[%emt 0:00:26]} 23. cxb4 {[%emt 0:00:19]} Rxb4 {[%emt 0:00:32]} 24. Qa3 {[%emt 0:00:21]} Rcb8 {[%emt 0:01:03] Strongly threatening ...Rxb2+. Black is more active.} 25. Ka1 {[%emt 0:00:57] [#]} a5 $2 {[%emt 0:03:56]} 26. hxg6 $11 {[%emt 0:00:17]} fxg6 {[%emt 0:00:08]} 27. Rh2 {[%emt 0:01:50]} a4 {[%emt 0:02:11]} 28. Qc3 {[%emt 0:02:08]} Qf6 {[%emt 0:01:18]} 29. Bf1 {[%emt 0:00:32]} (29. Rdh1 $5 Qe7 $8 30. Qd2 Nxd3 31. Qxd3 $15) 29... a3 {[%emt 0:07:36]} 30. b3 {[%emt 0:00:18]} (30. bxa3 $16 Ra4 31. Bb5) 30... Qf8 {[%emt 0:00:13]} 31. Rc1 {[%emt 0:00:24]} Qd6 {[%emt 0:05:12]} 32. Rhc2 {[%emt 0:00:11]} Qb6 {[%emt 0:00:38]} 33. Rd2 {[%emt 0:00:32]} g5 {[%emt 0:02:28]} 34. Qc7 {[%emt 0:00:42]} Qxc7 {[%emt 0:08:50]} (34... Rxd4 $2 35. Qxb6 Rxb6 36. Rxd4 $18) 35. Rxc7 {[%emt 0:00:08]} e5 {[%emt 0:00:20]} 36. dxe5 {[%emt 0:00:43]} Re8 {[%emt 0:00:06]} 37. Kb1 {[%emt 0:00:25]} Rxe5 {[%emt 0:00:13]} 38. Kc2 {[%emt 0:00:19]} Re3 {[%emt 0:01:48]} (38... Re1 $11 39. Rd1 Re8) 39. Rc8+ {[%emt 0:00:20]} Kf7 {[%emt 0:00:02]} 40. Rc7+ {[%emt 0:00:11]} Kf6 {[%emt 0:00:29]} 41. Rc6+ {[%emt 0:00:53]} Ke5 {[%emt 0:00:15]} 42. Rc3 {[%emt 0:01:08]} d4 {[%emt 0:01:42]} 43. Rxe3+ {[%emt 0:00:52]} (43. Rc5+ $11 Kd6 44. Rxg5) 43... dxe3 {[%emt 0:00:02][%mdl 4096] Endgame. KRB-KRN} 44. Rd8 {[%emt 0:00:13] [#]} Rb6 $1 {[%emt 0:02:51]} 45. Bc4 {[%emt 0:00:34] Hoping for Re8+.} Ng2 {[%emt 0:01:19] aiming for ...Kf4.} 46. Bf1 {[%emt 0:00:45] Loses the game.} (46. Rf8 $17) 46... Ne1+ $19 {[%emt 0:02:15]} 47. Kd1 {[%emt 0:00:07]} Nxf3 {[%emt 0:00:07]} 48. Ke2 {[%emt 0:00:08]} Kf4 {[%emt 0:04:27][%cal Ob6h6]} 49. Ra8 {[%emt 0:00:30]} Rd6 {[%emt 0:01:38][%csl Ge3,Gf3][%cal Rd6d2]} (49... Kxg4 50. Kxe3 Kg3 51. Bc4 $19) 50. Rf8+ {[%emt 0:00:11]} Rf6 {[%emt 0:02:11]} (50... Kxg4 51. Rxf3 Rd2+ 52. Kxe3 Rxa2 53. Rf7 $18) 51. Ra8 {[%emt 0:00:09]} Ng1+ {[%emt 0:00:53]} ({Not} 51... Kxg4 52. Kxe3 Kg3 53. Bc4 $17) 52. Ke1 {[%emt 0:02:00]} Rd6 {[%emt 0:01:06] ( -> ...Nf3+)} 53. Bc4 {[%emt 0:00:34]} Nf3+ {[%emt 0:00:32] Black mates.} 54. Kf1 {[%emt 0:00:24]} Rd1+ {[%emt 0:00:19]} 55. Kg2 {[%emt 0:01:09]} Rg1+ {[%emt 0:00:10]} 56. Kh3 {[%emt 0:00:00]} Rg3# {[%emt 0:15:05] Weighted Error Value: White=0.53/Black=0.19 (very precise) .  Mistake:       	White=6     	Black=4      Inaccurate:     	White=10    	Black=4      OK:         	White=14    	Black=20     Best:        	White=2     	Black=2      Strong:       	---       	Black=1} 0-1

[Event "8th Montevideo Open 2025"]
[Site "Montevideo"]
[Date "2025.02.05"]
[Round "5.13"]
[White "Izquierdo, Sebastian"]
[Black "Carbone, Diego"]
[Result "0-1"]
[Annotator "TA"]
[ECO "A48"]
[WhiteElo "1970"]
[BlackElo "2216"]
[PlyCount "80"]
[EventDate "2025.02.01"]
[EventType "swiss"]
[EventCountry "URU"]
[SourceTitle "playchess.com"]
[Source "ChessBase"]
[SourceQuality "1"]
[TimeControl "5400+30"]

{[%evp 18,80,0,0,0,7,0,0,11,-15,0,0,19,-12,0,-39,-46,-43,-45,-53,-27,-56,-45,-51,-51,-49,-47,-75,-77,-79,-67,-87,-87,-79,-58,-512,-527,-564,-570,-552,-563,-530,-468,-460,-441,-496,-504,-492,-489,-483,-476,-477,-475,-601,-472,-539,-457,-485,-453,-533,-529,-515,-470,-643,-633]} 1. d4 {[%emt 0:15:07]} Nf6 {[%emt 0:00:08]} 2. Bf4 {[%emt 0:00:41]} g6 {[%emt 0:03:01]} 3. e3 {[%emt 0:03:49]} Bg7 {[%emt 0:00:37]} 4. h3 {[%emt 0:01:13]} O-O {[%emt 0:02:05]} 5. Nf3 {[%emt 0:01:26]} d6 {[%emt 0:02:08]} 6. Be2 {[%emt 0:01:43]} c5 {[%emt 0:02:16]} 7. c3 {[%emt 0:00:15]} Qb6 {[%emt 0:00:14]} 8. Qb3 {[%emt 0:00:33]} Be6 {[%emt 0:00:08]} 9. Qxb6 {[%emt 0:00:58]} axb6 {[%emt 0:00:30]} 10. a3 {[%emt 0:00:30]} Bd5 {[%emt 0:00:00] A48: 1 d4 Nf6 2 Nf3 g6: Torre, London and Colle Systems.} 11. Nbd2 {[%emt 0:00:58]} Bc6 {[%emt 0:00:02]} 12. O-O {[%emt 0:00:50]} Nbd7 {[%emt 0:00:25] The position is equal.} 13. c4 {[%emt 0:06:04]} d5 {[%emt 0:03:14]} 14. Rfd1 $146 {[%emt 0:04:45]} (14. Ne5 cxd4 15. Nxc6 bxc6 16. exd4 dxc4 17. Bxc4 b5 18. Bb3 Nd5 19. Be3 e5 20. Nf3 Nxe3 21. fxe3 exd4 22. exd4 {½-½ Parondo,R (2193)-Lou,Y (2451) Asia-chT rapid 2024 (6.8)}) 14... cxd4 {[%emt 0:03:52]} 15. exd4 {[%emt 0:01:00]} dxc4 {[%emt 0:00:30]} 16. Bxc4 {[%emt 0:00:30]} b5 {[%emt 0:07:59]} 17. Bb3 {[%emt 0:04:01]} Nb6 {[%emt 0:00:41]} 18. Be5 {[%emt 0:03:32]} Bd5 {[%emt 0:01:27]} 19. Bxd5 {[%emt 0:01:24]} Nfxd5 {[%emt 0:00:30]} 20. Rac1 {[%emt 0:00:30]} f6 {[%emt 0:00:30]} 21. Bg3 {[%emt 0:00:30]} Na4 {[%emt 0:06:46] Dodges Rc5} 22. Rc2 {[%emt 0:04:42]} Bh6 {[%emt 0:00:30]} 23. Rdc1 {[%emt 0:00:30]} Kf7 {[%emt 0:00:30] Black is more active.} 24. b3 {[%emt 0:00:30] [#]} Nab6 {[%emt 0:00:30]} 25. Rc5 {[%emt 0:00:30]} Rxa3 {[%emt 0:00:30] and ...Ra2 would now be decisive} 26. Rxd5 $4 {[%emt 0:00:30][%mdl 8192] This move loses the game for White.} Nxd5 $19 {[%emt 0:00:30] Black is clearly winning.} 27. Rc5 {[%emt 0:00:30]} Rd8 {[%emt 0:00:30]} 28. Rxb5 {[%emt 0:00:30]} Nc3 {[%emt 0:00:30]} 29. Rxb7 {[%emt 0:00:30]} Ne2+ {[%emt 0:00:30]} 30. Kh2 {[%emt 0:00:30]} Nxg3 {[%emt 0:00:30]} (30... Nxd4 31. Nxd4 Rxd4 (31... Bxd2 $2 32. Nc6 $19) 32. Nc4 $19) 31. Kxg3 {[%emt 0:00:30]} Bxd2 {[%emt 0:00:30]} 32. Nxd2 {[%emt 0:00:30]} Rxd4 {[%emt 0:21:26][%mdl 4096] Endgame KRR-KRN} 33. Nf3 {[%emt 0:26:13]} Rd3 {[%emt 0:00:30][%cal Oa3a2]} 34. b4 {[%emt 0:00:30]} Rdb3 {[%emt 0:00:30]} 35. Kh2 {[%emt 0:00:30]} Ra4 {[%emt 0:00:30]} 36. b5 {[%emt 0:00:30]} Rab4 {[%emt 0:00:30]} 37. Rc7 {[%emt 0:00:30]} Rxb5 {[%emt 0:00:30]} 38. Nd4 {[%emt 0:00:30]} Rb7 {[%emt 0:00:30]} 39. Rc5 {[%emt 0:00:30]} Rd3 {[%emt 0:00:30]} 40. Nc6 {[%emt 0:00:30]} Rb2 {[%emt 0:00:30] Weighted Error Value: White=0.37/Black=0.16 (very precise)   Loses game:     	White=1     	---        Inaccurate:     	White=6     	Black=1      OK:         	White=11    	Black=16     Best:        	White=1     	Black=1} 0-1

[Event "8th Montevideo Open 2025"]
[Site "Montevideo"]
[Date "2025.02.05"]
[Round "5.14"]
[White "Estrada Nieto, Julian"]
[Black "Durante, Aurelio"]
[Result "1-0"]
[Annotator "TA"]
[ECO "C43"]
[WhiteElo "2195"]
[BlackElo "1950"]
[PlyCount "67"]
[EventDate "2025.02.01"]
[EventType "swiss"]
[EventCountry "URU"]
[SourceTitle "playchess.com"]
[Source "ChessBase"]
[SourceQuality "1"]
[TimeControl "5400+30"]

{[%evp 9,67,95,102,84,115,102,230,219,279,162,159,152,156,162,160,149,223,223,244,188,169,185,159,164,164,175,186,102,107,113,107,89,143,164,165,165,163,164,163,167,150,138,158,175,160,157,278,220,233,209,277,279,326,204,836,832,1029,1003,1040,971]} 1. e4 e5 2. Nf3 Nf6 {[%cal Bg8f6,Bf6d5,Bd5b6][%mdl 32]} 3. d4 exd4 4. e5 Nd5 {[%emt 0:55:13]} 5. Qxd4 c6 {[%emt 0:00:30][%cal Bc7c6,Bc6c5][%mdl 32]} 6. Bc4 {C43: Petroff Defence: 3 d4.} (6. Nc3 Nxc3 7. Qxc3 Be7 8. Bf4) 6... Nb6 {[%emt 0:00:30]} 7. Bg5 $146 {White is much more active.} (7. O-O {simplifies} Nxc4 8. Qxc4 Be7 9. Qg4) (7. Bb3 d5 8. c3 Be6 9. O-O N8d7 10. a4 Bc5 11. Qf4 h6 12. h4 Be7 13. Qg3 {1-0 Egesa,E (2135)-Niragire,B (1451) Kampala Kireka op 6th 2022 (1)}) 7... Qc7 {[%emt 0:00:30]} (7... Be7 $16) 8. Nbd2 $1 $18 {White is clearly better.} c5 {[%emt 0:00:30]} 9. Qf4 (9. Qh4 $142) 9... d5 {[%emt 0:00:30]} 10. exd6 Bxd6 {[%emt 0:00:30]} 11. Qe4+ Kf8 {[%emt 0:00:30][%cal Be8f8,Bf8g8,Bg8h7,Bh7h8][%mdl 32]} 12. O-O-O h6 {[%emt 0:00:30] [#]} (12... Bd7 $16 13. Rhe1 Nc6) 13. Rhe1 $1 {[%csl Ge1][%cal Re4e8]} Kg8 {[%emt 0:00:30]} 14. Be7 Bxe7 {[%emt 0:00:30]} 15. Qxe7 Qxe7 {[%emt 0:00:30]} 16. Rxe7 Nxc4 {[%emt 0:00:30]} 17. Nxc4 Nc6 {[%emt 0:00:30] Wards off Rd8+} 18. Re8+ (18. Rc7 $18) 18... Kh7 $16 {[%emt 0:00:30] [#]} 19. Rxh8+ Kxh8 {[%emt 0:00:30]} 20. Nce5 {Prevents Bg4.} Nxe5 {[%emt 0:00:30]} (20... Be6 $142) 21. Rd8+ ({Of course not} 21. Nxe5 $6 Be6 $14) 21... Kh7 {[%emt 0:00:30]} 22. Nxe5 $18 {[%mdl 4096] Endgame KRB-KRN} b6 {[%emt 0:00:30]} 23. Nxf7 Bb7 {[%emt 0:00:30]} 24. Rxa8 Bxa8 {[%emt 0:00:30] KB-KN. White is a pawn up.} 25. f3 Kg6 {[%emt 0:00:30]} 26. Nd6 a6 {[%emt 0:00:30]} 27. Kd2 Bd5 {[%emt 0:00:30]} (27... Kf6 $16 {was called for.} 28. Ne8+ Kf7) 28. c4 Be6 {[%emt 0:00:30]} 29. Kd3 h5 {[%emt 0:00:30][%cal Bh6h5,Bh5h4][%mdl 32]} 30. Ke4 h4 {[%emt 0:00:30]} 31. h3 {and Ke5 should not be overlooked} Kg5 $2 {[%emt 0:00:30]} (31... Kf6 32. b3 Bg8) 32. Ke5 {White is clearly winning.} Bd7 {[%emt 0:00:30]} 33. b3 b5 {[%emt 0:00:30]} 34. Ne4+ {Weighted Error Value: White=0.26 (precise) /Black=0.55  Mistake:       	White=2     	Black=5      Inaccurate:     	White=1     	Black=2      OK:         	White=11    	Black=6      Best:        	White=4     	Black=3      Strong:       	White=1     	---} 1-0

[Event "8th Montevideo Open 2025"]
[Site "Montevideo"]
[Date "2025.02.05"]
[Round "5.15"]
[White "Pizarro, Nick"]
[Black "Curi, Gabriel"]
[Result "0-1"]
[Annotator "TA"]
[ECO "B76"]
[WhiteElo "1594"]
[BlackElo "2115"]
[PlyCount "43"]
[EventDate "2025.02.01"]
[EventType "swiss"]
[EventCountry "URU"]
[SourceTitle "playchess.com"]
[Source "ChessBase"]
[SourceQuality "1"]
[TimeControl "5400+30"]

{[%evp 29,43,-16,-17,-140,-142,-796,-783,-779,-523,-525,-292,-880,-893,-840,-716,-1206]} 1. e4 {[%emt 0:03:11]} c5 {[%emt 0:00:05]} 2. Nf3 {[%emt 0:00:06]} d6 {[%emt 0:00:06]} 3. d4 {[%emt 0:01:15]} cxd4 {[%emt 0:00:07]} 4. Nxd4 {[%emt 0:00:05]} Nf6 {[%emt 0:00:05]} 5. Nc3 {[%emt 0:00:06]} g6 {[%emt 0:00:06]} 6. Be3 {[%emt 0:00:14]} Bg7 {[%emt 0:00:07]} 7. f3 {[%emt 0:00:19]} Nc6 {[%emt 0:00:14]} 8. Qd2 {[%emt 0:00:59]} O-O {[%emt 0:00:10]} 9. O-O-O {[%emt 0:00:05]} d5 {[%emt 0:00:23]} 10. Nxc6 {[%emt 0:02:14]} bxc6 {[%emt 0:00:07]} 11. exd5 {[%emt 0:00:06]} Nxd5 {[%emt 0:00:25]} 12. Nxd5 {[%emt 0:01:26]} cxd5 {[%emt 0:00:07]} 13. Qxd5 {[%emt 0:01:58]} Qc7 {[%emt 0:00:43]} 14. Qc5 {[%emt 0:13:37]} Qb7 {[%emt 0:00:09]} 15. Bd4 {[%emt 0:01:07]} Bf5 $1 {[%emt 0:04:02]} 16. Qb5 {[%emt 1:11:42] B76: Sicilian Dragon: Yugoslav Attack, 9 g4 and 9 0-0-0.} ({Of course not} 16. Bxg7 Rac8 $15) (16. Bd3 $11 Rac8 17. Qxa7 Qxa7 18. Bxa7) 16... Qc7 $17 {[%emt 0:27:33][%csl Gf5][%cal Rc7c2] [#]} 17. Bc3 $2 {[%emt 0:00:00][%mdl 8192]} (17. Qc5 $17 Qxc5 18. Bxc5) 17... Bxc3 $19 {[%emt 0:16:09]} 18. bxc3 {[%emt 0:00:00]} Qxc3 {[%emt 0:00:34][%csl Gf5][%cal Rc3c2]} 19. Qb3 {[%emt 0:00:00]} Qa1+ $146 {[%emt 0:06:32]} (19... Qe5 20. Qb2 Qe3+ 21. Rd2 Rfd8 22. Bd3 Bxd3 23. cxd3 Rxd3 24. Rhd1 Rxd2 25. Qxd2 Rc8+ {0-1 Murin,M-Berggren,P (1913) IBCA EU-ch blind 04th 2007 (8.27)}) 20. Qb1 $2 {[%emt 0:00:00] [#]} (20. Kd2 Qf6 21. Ke1) 20... Qe5 {[%emt 0:00:27]} 21. Qb4 {[%emt 0:00:00]} Qe3+ {[%emt 0:03:36]} 22. Rd2 {[%emt 0:00:00] White did not feel at home in the position after the opening.   Weighted Error Value: White=1.83/Black=1.19  Loses game:     	White=1     	---        Mistake:       	White=1     	---        OK:         	White=1     	Black=2      Best:        	---       	Black=1} 0-1